bitfinex/quotes_ETHUSD_20260216
["timestamp","ask_amount","ask_price","bid_price","bid_amount"]
[1771205415233,0.49489247,1970.2,1969.1,0.48745726]
[1771205415428,0.49489247,1970.0,1969.2,1.435]
[1771205415638,0.49489247,1970.0,1969.2,0.001]
[1771205415842,0.49489247,1969.8,1969.3,0.001]
[1771205416239,0.49489247,1969.8,1969.4,0.001]
[1771205416440,0.49489247,1969.8,1969.2,0.834]
[1771205417045,0.49489247,1969.8,1969.0,0.00153886]
[1771205417251,0.49489247,1969.8,1969.2,0.834]
[1771205418485,0.49489247,1970.2,1969.3,0.0264962]
[1771205418766,0.49489247,1970.0,1969.3,0.001]
[1771205418976,0.49489247,1970.0,1969.4,0.001]
[1771205419185,0.49489247,1970.0,1969.3,0.001]
[1771205419532,0.49489247,1970.0,1969.4,0.001]
[1771205419980,0.49599247,1969.7,1969.4,0.001]
[1771205420188,0.49599247,1969.7,1969.5,0.001]
[1771205420370,0.0011,1969.7,1969.5,0.001]
[1771205424487,0.0011,1969.7,1969.1,0.9404885]
[1771205424488,0.49599247,1969.7,1969.1,0.001]
[1771205426564,0.49489247,1969.6,1969.1,0.001]
[1771205426769,0.49489247,1969.5,1969.1,0.001]
[1771205427969,0.49599247,1969.7,1969.1,0.001]
[1771205428570,0.55835713,1969.6,1969.1,0.001]
[1771205428872,0.49489247,1969.6,1969.1,0.001]
[1771205429077,0.49489247,1969.4,1969.1,0.001]
[1771205429679,0.49489247,1969.4,1968.5,0.914]
[1771205429886,0.49489247,1969.4,1968.5,1.743]
[1771205430195,0.49489247,1969.4,1968.2,0.48845726]
[1771205430388,0.49489247,1969.4,1968.3,1.744]
[1771205430895,0.49489247,1969.4,1968.2,0.48845726]
[1771205430896,0.49489247,1969.4,1968.2,2.23245726]
[1771205431500,0.49489247,1969.4,1968.2,0.48845726]
[1771205431705,0.49489247,1969.4,1968.2,2.23245726]
[1771205432071,0.49489247,1969.4,1968.3,0.48745726]
[1771205432798,0.5583668,1969.3,1968.3,0.48745726]
[1771205433269,0.5583668,1969.3,1968.2,1.744]
[1771205433473,0.5583668,1969.3,1968.3,0.001]
[1771205438573,0.5583668,1969.3,1968.3,0.48845726]
[1771205438799,0.49489247,1969.3,1968.3,0.48845726]
[1771205439002,0.0011,1969.7,1968.8,0.48745726]
[1771205439195,0.0011,1969.7,1969.0,0.48745726]
[1771205440306,0.49599247,1969.7,1968.9,1.742]
[1771205440630,0.03796459,1969.6,1968.9,1.742]
[1771205440918,0.49599247,1969.7,1968.9,1.742]
[1771205441075,0.49599247,1969.7,1968.9,2.22945726]
[1771205441274,0.0011,1969.7,1969.0,0.48745726]
[1771205442105,0.0011,1969.7,1968.9,1.742]
[1771205442278,0.49599247,1969.7,1968.9,1.742]
[1771205443512,0.49599247,1969.7,1968.9,2.22945726]
[1771205445413,0.0011,1969.6,1968.9,2.22945726]
[1771205446312,0.03906459,1969.6,1968.9,2.22945726]
[1771205446603,0.0011,1969.6,1968.9,2.22945726]
[1771205446808,0.0011,1969.6,1969.0,0.47831919]
[1771205447010,0.0011,1969.8,1969.1,0.47831919]
[1771205447209,0.00263886,1970.0,1969.5,0.47831919]
[1771205447377,0.00263886,1970.0,1969.6,0.827]
[1771205447578,0.00263886,1970.0,1969.6,1.30531919]
[1771205449100,0.00263886,1970.0,1969.6,0.827]
[1771205449298,0.00263886,1970.0,1969.3,0.47831919]
[1771205449481,0.00263886,1970.0,1969.4,0.828]
[1771205450314,0.00263886,1970.0,1969.2,0.828]
[1771205450315,0.48964311,1970.0,1969.2,0.828]
[1771205450514,0.48964311,1970.0,1969.0,0.01269365]
[1771205450515,0.52496884,1969.9,1969.0,0.01269365]
[1771205450704,0.52496884,1969.9,1969.1,1.743]
[1771205452515,0.48700425,1969.9,1969.2,0.01269235]
[1771205452909,0.00263886,1970.0,1969.2,0.49101154]
[1771205456312,0.00263886,1970.0,1969.2,0.52910123]
[1771205457307,0.00263886,1970.0,1969.3,0.47931919]
[1771205457717,0.0011,1969.9,1969.3,0.47931919]
[1771205459830,0.0011,1969.9,1969.4,0.05077688]
[1771205460895,0.0011,1969.9,1969.4,0.52909607]
[1771205461167,0.48700425,1970.8,1969.7,0.47831919]
[1771205461435,0.52496884,1970.7,1969.9,0.47831919]
[1771205461924,0.00153886,1971.0,1970.2,9.40050102]
[1771205462131,0.00153886,1971.0,1969.8,0.47831919]
[1771205462132,0.5265077,1971.0,1969.8,0.47831919]
[1771205462337,0.5265077,1971.0,1970.1,0.914]
[1771205462919,0.48700425,1970.9,1969.6,0.47831919]
[1771205463132,0.48700425,1970.7,1969.7,1.744]
[1771205463327,0.48700425,1970.5,1969.8,0.83]
[1771205463499,0.48700425,1970.3,1969.8,0.83]
[1771205466095,0.48700425,1970.3,1969.4,0.47831919]
[1771205466329,0.52496884,1970.2,1969.5,1.744]
[1771205469727,0.52496884,1970.2,1969.6,0.001]
[1771205469921,0.52606884,1970.2,1969.6,0.001]
[1771205480340,0.48376592,1970.1,1969.6,0.001]
[1771205480655,0.48376592,1969.9,1969.6,0.001]
[1771205480965,0.52173051,1969.8,1969.6,0.001]
[1771205482484,0.52173051,1969.8,1969.7,0.001]
[1771205492381,0.03796459,1969.8,1969.7,0.001]
[1771205492581,0.03796459,1969.9,1969.7,0.001]
[1771205493812,0.52173051,1969.9,1969.7,0.001]
[1771205495392,0.52173051,1969.9,1969.5,0.001]
[1771205498819,0.48376592,1969.7,1969.5,0.001]
[1771205498990,0.52173051,1969.6,1969.5,0.001]
[1771205499191,0.03796459,1969.6,1969.5,0.001]
[1771205499789,0.52173051,1969.6,1969.3,0.001]
[1771205499988,0.48376592,1969.4,1969.0,0.00253886]
[1771205503113,0.48376592,1969.7,1969.0,0.00253886]
[1771205503317,0.03796459,1969.8,1969.0,0.45640102]
[1771205503620,0.48376592,1969.9,1969.0,0.45640102]
[1771205503621,0.03796459,1969.9,1969.0,0.45640102]
[1771205503792,0.03906459,1970.1,1969.0,0.45640102]
[1771205506514,0.53670631,1970.1,1969.1,1.733]
[1771205506835,0.49874172,1969.8,1969.1,0.001]
[1771205506992,0.53560631,1969.7,1969.1,0.001]
[1771205512319,0.03796459,1969.7,1969.1,0.001]
[1771205512614,0.53670631,1969.8,1969.1,0.001]
[1771205518625,0.53670631,1969.8,1969.1,0.019262]
[1771205519125,0.0011,1969.7,1969.2,0.001]
[1771205519321,0.49764172,1969.6,1969.2,0.001]
[1771205519521,0.03796459,1969.5,1969.2,0.001]
[1771205520329,0.53560631,1969.5,1969.2,0.001]
[1771205520548,0.03796459,1969.5,1969.2,0.001]
[1771205520843,0.03796459,1969.6,1969.2,0.001]
[1771205521339,0.53560631,1969.6,1969.2,0.001]
[1771205525652,0.49764172,1969.5,1969.0,0.00253886]
[1771205525820,0.49764172,1969.3,1969.0,0.00253886]
[1771205526139,0.03796459,1969.4,1969.0,0.00253886]
[1771205526140,0.03796459,1969.2,1969.0,0.00253886]
[1771205526316,0.49764172,1969.2,1969.0,0.00253886]
[1771205527133,0.53560631,1969.2,1969.0,0.00253886]
[1771205527745,0.53560631,1969.2,1968.3,0.45207943]
[1771205528245,15.77447186,1969.6,1968.3,0.45207943]
[1771205528246,0.53560631,1969.1,1968.3,0.45207943]
[1771205528447,0.03796459,1969.1,1968.3,0.45207943]
[1771205528621,0.03796459,1969.2,1968.3,0.45207943]
[1771205529146,0.53560631,1969.2,1968.3,0.45207943]
[1771205530725,0.53560631,1969.2,1968.1,0.45507943]
[1771205530943,0.53560631,1969.2,1968.2,0.45507943]
[1771205532257,0.53560631,1969.2,1968.4,0.001]
[1771205535053,0.03796459,1969.2,1968.4,0.48661511]
[1771205535265,0.53024507,1969.3,1968.4,0.48661511]
[1771205540259,0.03796459,1969.3,1968.4,0.48661511]
[1771205540454,0.03796459,1969.4,1968.4,0.48661511]
[1771205540831,0.53024507,1969.4,1968.4,0.48661511]
[1771205541972,8.24284542,1969.2,1968.4,0.48661511]
[1771205542170,0.03796459,1969.1,1968.4,0.48661511]
[1771205542665,0.53024507,1969.1,1968.4,0.48661511]
[1771205544955,0.53024507,1969.1,1968.4,0.001]
[1771205545355,0.53024507,1969.1,1968.4,0.48661511]
[1771205546547,0.53024507,1969.1,1968.4,0.001]
[1771205549141,0.03796459,1969.1,1968.4,0.48661511]
[1771205549346,0.03906459,1969.2,1968.4,0.48661511]
[1771205550069,0.53134507,1969.2,1968.4,0.48661511]
[1771205552200,0.03906459,1969.2,1968.4,0.48661511]
[1771205552402,0.03906459,1969.2,1968.6,0.48561511]
[1771205552403,0.0011,1969.2,1968.6,0.48561511]
[1771205552604,0.0011,1969.2,1968.8,0.48561511]
[1771205556716,0.0011,1969.2,1968.7,0.05056697]
[1771205556883,0.0011,1969.2,1968.6,2.24918208]
[1771205557212,0.0011,1969.2,1968.7,0.48561511]
[1771205558619,0.0011,1969.2,1968.6,0.48561511]
[1771205562097,0.53134507,1969.2,1968.4,0.001]
[1771205564859,0.46748166,1969.1,1968.4,0.001]
[1771205565021,1.30863983,1969.2,1968.4,0.001]
[1771205565022,0.46748166,1968.9,1968.4,0.001]
[1771205567917,0.49453157,1969.1,1968.4,0.001]
[1771205568274,0.53249616,1969.0,1968.4,0.001]
[1771205578447,0.49453157,1968.5,1968.2,0.001]
[1771205578744,0.53249616,1968.5,1968.1,0.001]
[1771205581169,0.03796459,1968.5,1968.4,0.001]
[1771205581353,0.03796459,1968.6,1968.4,0.001]
[1771205581562,0.03796459,1968.6,1968.1,0.001]
[1771205581563,0.49453157,1968.5,1968.1,0.001]
[1771205581744,10.19856877,1968.7,1968.1,0.001]
[1771205581745,0.49453157,1968.3,1968.1,0.001]
[1771205583745,0.03796459,1968.2,1968.1,0.001]
[1771205583950,0.53249616,1968.2,1968.1,0.001]
[1771205584371,0.53249616,1968.2,1968.0,0.00253886]
[1771205584877,0.53249616,1968.2,1967.8,0.001]
[1771205585974,7.76008223,1968.0,1967.8,0.001]
[1771205586138,0.49453157,1967.9,1967.2,0.45826053]
[1771205586336,7.76008223,1967.8,1967.2,0.45826053]
[1771205588274,7.76008223,1967.6,1967.0,0.45979939]
[1771205588573,7.76008223,1967.6,1967.0,0.00153886]
[1771205589574,8.2546138,1967.6,1967.0,0.00153886]
[1771205590586,7.76008223,1967.4,1967.0,0.00153886]
[1771205590788,8.2546138,1967.4,1967.0,0.00153886]
[1771205591923,8.2546138,1967.4,1966.5,0.05085176]
[1771205591924,0.49453157,1967.1,1966.5,0.05085176]
[1771205592070,0.49453157,1967.1,1966.0,1.05653886]
[1771205592071,7.76008223,1966.6,1966.0,1.05653886]
[1771205592615,7.76008223,1966.4,1966.0,1.05653886]
[1771205594002,0.49453157,1966.5,1966.0,1.05653886]
[1771205594389,0.49453157,1966.5,1966.0,0.80918157]
[1771205596790,0.48446683,1966.3,1966.0,0.80918157]
[1771205597408,0.928,1966.4,1966.0,0.80918157]
[1771205597997,3.00023439,1966.3,1966.0,0.80918157]
[1771205598308,0.928,1966.4,1966.0,0.80918157]
[1771205598512,2.99799801,1966.3,1966.0,0.80918157]
[1771205598679,0.928,1966.4,1966.0,0.80918157]
[1771205598880,2.99798944,1966.3,1966.0,0.80918157]
[1771205599214,0.928,1966.4,1966.0,0.80918157]
[1771205599411,2.99662381,1966.3,1966.0,0.80918157]
[1771205599705,0.48446683,1966.7,1966.0,0.80918157]
[1771205599897,2.99693053,1966.6,1966.1,0.47155951]
[1771205600099,0.03796459,1966.7,1966.1,0.47155951]
[1771205602386,0.03796459,1966.9,1966.1,0.47155951]
[1771205602589,0.03950345,1967.0,1966.2,0.05085952]
[1771205602826,0.00153886,1967.0,1966.2,0.782]
[1771205603045,0.03950345,1967.0,1966.2,1.698]
[1771205603248,0.03950345,1967.0,1966.1,0.52242162]
[1771205603387,0.03950345,1967.0,1966.1,2.22042162]
[1771205603588,0.03950345,1967.0,1966.2,0.47155951]
[1771205604117,0.00153886,1967.0,1966.4,0.47155951]
[1771205605094,0.03950345,1967.0,1966.2,0.52241903]
[1771205605293,0.03950345,1967.0,1966.2,0.47155951]
[1771205606124,0.00153886,1967.0,1966.3,0.47155951]
[1771205606710,0.0011,1966.9,1966.3,0.47155951]
[1771205609018,0.00263886,1967.0,1966.4,0.47155951]
[1771205611918,0.00263886,1967.0,1966.6,0.47155951]
[1771205613120,0.00263886,1967.0,1966.7,0.47155951]
[1771205613324,0.00263886,1967.0,1966.5,0.52241127]
[1771205613525,0.00263886,1967.0,1966.6,0.782]
[1771205613898,0.00263886,1967.0,1966.6,0.05084918]
[1771205614424,0.00263886,1967.0,1966.3,0.52241644]
[1771205614608,3.01626821,1966.9,1966.4,0.781]
[1771205614804,0.00263886,1967.0,1966.4,0.781]
[1771205615016,3.01623564,1966.9,1966.4,0.781]
[1771205615219,0.04060345,1967.0,1966.4,0.781]
[1771205615419,3.01796093,1966.9,1966.4,0.781]
[1771205615619,0.04060345,1967.0,1966.4,0.781]
[1771205615822,3.01800136,1966.9,1966.4,0.781]
[1771205616001,0.04060345,1967.0,1966.4,0.781]
[1771205616306,3.01806433,1966.9,1966.4,0.781]
[1771205616626,3.01806433,1966.8,1966.4,0.781]
[1771205616827,0.04060345,1967.0,1966.4,0.781]
[1771205617035,3.01959519,1966.9,1966.4,0.781]
[1771205617205,3.01959519,1966.8,1966.4,0.781]
[1771205617406,0.04060345,1967.0,1966.4,0.781]
[1771205617605,3.02107755,1966.9,1966.4,0.781]
[1771205617825,0.04060345,1967.0,1966.4,0.781]
[1771205617826,3.02107755,1966.8,1966.4,0.781]
[1771205618035,0.04060345,1967.0,1966.1,0.52342162]
[1771205618199,3.02107287,1966.9,1966.2,1.25255951]
[1771205618403,3.02107287,1966.8,1966.2,1.25255951]
[1771205618603,0.04060345,1967.0,1966.2,1.25255951]
[1771205618946,3.02211089,1966.9,1966.3,0.52241644]
[1771205619234,3.02211089,1966.8,1966.3,0.52241644]
[1771205619460,0.00263886,1967.0,1966.3,0.52241644]
[1771205619610,3.02285093,1966.9,1966.3,0.52241644]
[1771205619812,3.02285093,1966.8,1966.3,0.52241644]
[1771205620015,3.02275074,1966.7,1966.3,0.47155951]
[1771205620312,2.92525779,1967.0,1966.3,0.47155951]
[1771205620664,0.0011,1966.8,1966.3,0.781]
[1771205620869,3.02355005,1966.7,1966.3,0.781]
[1771205621141,0.0011,1966.8,1966.3,0.781]
[1771205621345,3.02389705,1966.7,1966.3,0.781]
[1771205621525,0.0011,1966.8,1966.3,0.781]
[1771205621729,3.02438858,1966.7,1966.3,0.781]
[1771205621935,0.0011,1966.8,1966.3,0.781]
[1771205622145,3.0243857,1966.7,1966.3,0.781]
[1771205622315,0.0011,1966.8,1966.3,0.781]
[1771205622516,3.02441634,1966.7,1966.3,0.781]
[1771205622717,0.0011,1966.8,1966.3,0.781]
[1771205622919,3.02441689,1966.7,1966.3,0.781]
[1771205623113,0.0011,1966.8,1966.1,1.43942162]
[1771205623114,3.02434227,1966.6,1966.1,0.001]
[1771205623350,3.02434227,1966.5,1966.1,0.782]
[1771205623537,2.88575434,1966.8,1966.1,0.782]
[1771205623740,3.02458856,1966.7,1966.1,0.782]
[1771205623945,3.02458856,1966.6,1966.1,0.782]
[1771205624141,3.02458856,1966.5,1966.1,0.782]
[1771205624342,3.02498188,1966.4,1966.1,0.782]
[1771205624542,0.45021727,1966.7,1966.1,0.001]
[1771205624858,0.45021727,1966.5,1966.1,0.001]
[1771205625022,3.02499029,1966.4,1966.1,0.001]
[1771205625363,0.45021727,1966.5,1966.1,0.001]
[1771205625364,3.02499029,1966.3,1966.1,0.001]
[1771205625522,3.02513006,1966.2,1966.1,0.001]
[1771205625718,0.45021727,1966.5,1966.1,0.001]
[1771205625950,3.02516179,1966.4,1966.1,0.001]
[1771205626161,3.02516179,1966.3,1966.1,0.001]
[1771205626462,3.02516179,1966.2,1966.1,0.001]
[1771205627938,3.02516179,1966.2,1966.0,0.81018157]
[1771205627939,3.49691912,1966.2,1966.0,0.81018157]
[1771205628144,3.49691912,1966.2,1965.0,5.09046675]
[1771205628145,0.47175733,1966.0,1965.0,0.00153886]
[1771205628371,2.4179473,1965.6,1965.0,0.05242944]
[1771205628569,2.4179473,1965.6,1965.0,0.00153886]
[1771205628570,3.02516179,1965.5,1965.0,0.00153886]
[1771205628871,3.02516179,1965.4,1965.0,0.00153886]
[1771205629073,2.4179473,1965.5,1965.0,0.00153886]
[1771205629074,3.02516179,1965.3,1965.0,0.00153886]
[1771205629275,3.02516179,1965.2,1965.0,0.00153886]
[1771205629473,0.47175733,1965.5,1965.0,0.00153886]
[1771205629772,0.47175733,1965.3,1965.0,0.00153886]
[1771205629974,3.02081984,1965.2,1965.0,0.00153886]
[1771205630175,3.02081984,1965.1,1965.0,0.00153886]
[1771205630851,2.4179473,1965.5,1965.0,0.00153886]
[1771205631055,2.4179473,1965.6,1965.0,0.00153886]
[1771205631391,0.47175733,1965.5,1965.0,0.00153886]
[1771205634471,0.47175733,1965.5,1965.1,0.001]
[1771205637548,0.47175733,1965.5,1964.4,2.23282569]
[1771205637858,12.14784188,1965.6,1964.5,0.48891957]
[1771205637859,2.4179473,1965.6,1964.5,0.48891957]
[1771205638062,0.03796459,1965.6,1964.7,0.48891957]
[1771205638559,0.50972192,1965.6,1964.7,0.48891957]
[1771205638755,0.03796459,1965.6,1964.8,0.53981533]
[1771205638984,0.50972192,1965.7,1964.8,0.48891957]
[1771205641192,0.03796459,1965.7,1964.9,0.48891957]
[1771205641354,0.50972192,1965.9,1964.9,0.48891957]
[1771205641577,0.50972192,1965.9,1964.9,2.18091957]
[1771205642388,0.50972192,1965.9,1964.9,1.26491957]
[1771205642608,0.50972192,1965.9,1965.0,0.48891957]
[1771205642908,3.47748136,1965.8,1965.0,0.48891957]
[1771205643110,3.5156377,1965.7,1964.9,1.26491957]
[1771205643332,3.5156377,1965.7,1964.0,0.00153886]
[1771205643333,0.47175733,1965.4,1964.0,0.00153886]
[1771205643619,0.47175733,1965.4,1964.0,0.49045843]
[1771205643620,0.47175733,1965.0,1964.0,0.49045843]
[1771205643800,3.00591578,1964.9,1964.0,0.49045843]
[1771205644106,3.00591578,1964.8,1964.0,0.49045843]
[1771205644311,0.47175733,1964.9,1964.0,0.49045843]
[1771205644507,3.47628207,1964.8,1964.0,0.49045843]
[1771205644805,0.47175733,1964.8,1964.0,0.49045843]
[1771205644990,0.47175733,1964.8,1964.0,0.00153886]
[1771205645192,0.47175733,1964.8,1964.0,0.49045843]
[1771205645415,0.47175733,1964.8,1964.0,0.00153886]
[1771205647024,1.43872192,1965.0,1964.0,0.49045843]
[1771205647184,1.43872192,1965.0,1964.1,0.48991957]
[1771205647185,3.00322994,1964.9,1964.1,0.48991957]
[1771205647381,3.47498727,1964.8,1964.1,0.001]
[1771205647580,0.47175733,1964.8,1964.1,0.001]
[1771205647823,3.00275439,1964.7,1964.2,0.48891957]
[1771205647997,3.38601189,1965.0,1964.2,0.48891957]
[1771205647998,0.96806459,1965.0,1964.2,0.48891957]
[1771205648186,3.00312024,1964.9,1964.2,0.48891957]
[1771205648381,0.9301,1965.0,1964.2,0.48891957]
[1771205648585,3.00381136,1964.9,1964.2,0.48891957]
[1771205648816,0.0011,1965.0,1964.2,0.48891957]
[1771205649025,3.04176256,1964.9,1964.2,0.48891957]
[1771205649228,0.03796459,1964.9,1964.2,0.48891957]
[1771205649434,0.03796459,1964.9,1964.1,0.001]
[1771205649933,0.03796459,1964.9,1964.1,0.48991957]
[1771205650103,0.47285733,1965.0,1964.2,0.53982865]
[1771205650104,0.0011,1965.0,1964.2,0.53982865]
[1771205651403,0.0011,1965.0,1964.3,0.48891957]
[1771205651604,0.0011,1965.0,1964.5,0.48891957]
[1771205651833,0.0011,1965.0,1964.7,0.48891957]
[1771205652328,0.0011,1965.0,1964.6,2.2403579]
[1771205652329,0.0011,1965.0,1964.8,0.53981326]
[1771205653231,0.0011,1965.3,1964.9,0.48891957]
[1771205653401,0.0011,1965.3,1965.0,0.779]
[1771205653799,0.0022,1965.3,1965.0,0.779]
[1771205654033,0.0011,1965.3,1965.0,0.779]
[1771205654238,2.41948616,1966.0,1965.1,0.46481358]
[1771205654527,3.01979388,1965.9,1965.1,0.46481358]
[1771205654728,3.01869388,1965.8,1965.1,0.46481358]
[1771205655030,0.0011,1965.9,1965.1,0.46481358]
[1771205655347,3.02074582,1965.8,1965.1,0.46481358]
[1771205655502,0.0011,1965.9,1965.2,1.697]
[1771205655703,0.0011,1965.7,1965.2,1.697]
[1771205655924,0.0011,1965.9,1965.2,1.697]
[1771205656122,3.02071938,1965.8,1965.2,1.697]
[1771205656324,0.0011,1965.9,1965.3,0.46481358]
[1771205656532,3.02261561,1965.8,1965.3,0.46481358]
[1771205656734,0.0011,1965.9,1965.3,0.46481358]
[1771205656936,3.02261813,1965.8,1965.3,0.46481358]
[1771205657107,0.0011,1965.7,1965.3,0.46481358]
[1771205657429,0.00153886,1966.0,1965.3,0.46481358]
[1771205657611,3.02538829,1965.9,1965.3,0.46481358]
[1771205657812,3.02428829,1965.8,1965.3,0.46481358]
[1771205658013,0.0011,1965.9,1965.3,1.73684996]
[1771205658217,3.02421738,1965.8,1965.4,0.46481358]
[1771205658437,0.0011,1965.9,1965.4,0.46481358]
[1771205658932,3.02322018,1965.8,1965.4,0.46481358]
[1771205659116,0.0011,1965.8,1965.4,0.46481358]
[1771205659510,0.00153886,1966.0,1965.4,0.46481358]
[1771205659814,0.00153886,1966.0,1965.4,0.20083919]
[1771205660015,0.00153886,1966.0,1965.5,1.47278017]
[1771205660315,0.00153886,1966.0,1965.3,1.47286218]
[1771205660522,0.00153886,1966.0,1965.4,1.701]
[1771205660721,0.46248019,1966.0,1965.4,1.701]
[1771205661107,0.46248019,1966.0,1965.0,1.27222113]
[1771205661439,0.46094133,1965.8,1965.1,0.785]
[1771205661849,0.49890592,1965.7,1965.1,0.785]
[1771205662055,0.49890592,1965.7,1965.2,0.785]
[1771205663259,0.49890592,1965.7,1965.0,0.05089058]
[1771205663260,0.46094133,1965.7,1965.0,0.05089058]
[1771205663458,0.46094133,1965.7,1965.1,0.785]
[1771205663839,0.46094133,1965.7,1965.0,0.05089058]
[1771205664041,0.46094133,1965.7,1965.1,0.784]
[1771205664550,0.46094133,1965.7,1964.7,1.47325036]
[1771205664551,0.46094133,1965.7,1964.7,0.05089576]
[1771205664951,0.46094133,1965.7,1964.8,0.784]
[1771205665562,0.46094133,1965.7,1964.9,0.05089057]
[1771205667056,0.46094133,1965.7,1964.9,1.32321348]
[1771205667258,0.46094133,1965.7,1964.9,0.05089057]
[1771205668345,0.46094133,1965.7,1965.0,0.784]
[1771205669241,0.46094133,1965.7,1965.1,0.0508828]
[1771205669442,0.46094133,1965.7,1965.0,0.8348828]
[1771205669676,0.46094133,1965.7,1965.0,0.784]
[1771205671670,3.01726643,1965.6,1965.0,0.784]
[1771205671872,3.47820776,1965.5,1965.0,0.784]
[1771205672071,0.46094133,1965.5,1965.0,0.784]
[1771205673759,0.46094133,1965.5,1965.0,0.782]
[1771205674649,0.46094133,1965.3,1964.9,0.782]
[1771205675578,3.48038739,1965.2,1964.7,0.782]
[1771205675747,3.01944606,1965.1,1964.7,0.782]
[1771205676077,0.46094133,1965.5,1965.0,0.001]
[1771205676376,0.46094133,1965.3,1965.0,0.001]
[1771205676579,3.01924878,1965.2,1965.0,0.001]
[1771205677167,0.46094133,1965.3,1965.0,0.001]
[1771205677382,3.02238696,1965.2,1965.0,0.001]
[1771205677562,0.46094133,1965.3,1965.0,0.001]
[1771205677763,3.02238514,1965.2,1965.0,0.001]
[1771205677958,0.46094133,1965.3,1965.0,0.001]
[1771205678280,3.02237675,1965.2,1965.0,0.001]
[1771205678485,0.46094133,1965.3,1965.0,0.001]
[1771205678668,3.02463851,1965.2,1965.0,0.001]
[1771205678870,0.46094133,1965.3,1965.0,0.001]
[1771205679204,3.02461077,1965.2,1965.0,0.001]
[1771205679399,0.46094133,1965.3,1965.0,0.001]
[1771205679712,3.0267139,1965.2,1965.0,0.001]
[1771205679916,0.46094133,1965.3,1965.0,0.001]
[1771205680209,3.02671965,1965.2,1965.0,0.001]
[1771205680498,0.46094133,1965.3,1965.0,0.001]
[1771205680667,3.02779128,1965.2,1965.0,0.001]
[1771205680866,0.46094133,1965.3,1965.0,0.001]
[1771205681093,3.02772435,1965.2,1965.0,0.001]
[1771205681293,3.48866568,1965.1,1965.0,0.001]
[1771205681594,3.48866568,1965.1,1964.1,0.001]
[1771205681595,0.46094133,1965.0,1964.1,0.001]
[1771205681797,0.33412752,1964.8,1964.1,0.0519139]
[1771205681993,3.02772435,1964.7,1964.1,0.0519139]
[1771205682196,3.02772435,1964.6,1964.1,0.0519139]
[1771205682401,0.33412752,1964.8,1964.1,0.0519139]
[1771205682604,3.0254972,1964.7,1964.1,0.0519139]
[1771205682772,3.0254972,1964.6,1964.1,0.0519139]
[1771205682971,0.33412752,1964.8,1964.1,0.0519139]
[1771205683274,3.02559456,1964.7,1964.1,0.0519139]
[1771205683474,0.46094133,1964.7,1964.1,0.0519139]
[1771205683982,3.02400778,1964.6,1964.1,0.0519139]
[1771205684181,0.46094133,1964.7,1964.1,0.0519139]
[1771205684379,3.66488554,1965.2,1964.1,0.001]
[1771205684380,3.49228176,1964.6,1964.1,0.001]
[1771205684586,3.02244006,1964.5,1964.1,0.001]
[1771205684903,0.46978825,1964.6,1964.1,0.001]
[1771205685069,3.02250064,1964.5,1964.1,0.001]
[1771205685274,0.46978825,1964.6,1964.1,0.001]
[1771205685496,3.50140529,1964.5,1964.1,0.001]
[1771205685697,0.48036438,1964.5,1964.1,0.001]
[1771205689574,0.48036438,1964.5,1964.2,0.001]
[1771205690680,0.48036438,1964.5,1963.9,0.001]
[1771205690906,8.95863086,1964.8,1963.9,0.001]
[1771205690907,0.48036438,1964.3,1963.9,0.001]
[1771205691103,3.01722246,1964.2,1963.9,0.001]
[1771205691305,0.48036438,1964.3,1963.9,0.001]
[1771205691518,3.49680428,1964.2,1963.9,0.001]
[1771205691724,0.48036438,1964.4,1963.9,0.001]
[1771205691926,3.0164541,1964.3,1963.9,0.001]
[1771205692216,3.0164541,1964.2,1963.9,0.001]
[1771205692513,3.49530522,1964.1,1963.5,0.03383366]
[1771205692691,3.01494084,1964.0,1963.5,0.03383366]
[1771205693811,0.48036438,1963.9,1963.5,0.03383366]
[1771205696315,8.95863086,1964.4,1963.5,0.03383366]
[1771205696316,0.48036438,1963.7,1963.5,0.03383366]
[1771205696494,3.66488554,1964.3,1963.5,0.03383366]
[1771205696495,0.48036438,1964.2,1963.5,0.03383366]
[1771205696701,3.00897866,1964.1,1963.5,0.03383366]
[1771205696899,0.51832897,1964.2,1963.5,0.03383366]
[1771205697098,0.48036438,1964.0,1963.5,0.03383366]
[1771205700437,0.48036438,1964.0,1963.1,0.329653]
[1771205700438,0.48036438,1963.8,1963.0,0.20153886]
[1771205700594,3.00738876,1963.7,1963.0,0.20153886]
[1771205700797,0.48036438,1964.0,1963.0,0.58213429]
[1771205701030,0.48036438,1963.8,1963.0,0.58213429]
[1771205701226,0.48036438,1963.8,1963.0,0.25248129]
[1771205701963,0.48036438,1963.8,1963.6,0.001]
[1771205703172,0.48036438,1964.1,1963.6,0.001]
[1771205703376,0.48036438,1963.9,1963.6,0.001]
[1771205703554,0.48036438,1964.1,1963.6,0.001]
[1771205703756,0.48036438,1963.9,1963.6,0.001]
[1771205704561,0.03796459,1964.3,1963.6,0.001]
[1771205704562,0.48036438,1964.2,1963.6,0.001]
[1771205704764,3.48929092,1964.1,1963.6,0.001]
[1771205704947,3.00892654,1964.0,1963.6,0.001]
[1771205707155,3.00892654,1964.0,1963.6,0.05192686]
[1771205707351,0.48036438,1964.3,1963.6,0.05192686]
[1771205707587,3.01174263,1964.2,1963.6,0.001]
[1771205707882,3.01174263,1964.1,1963.6,0.001]
[1771205708087,3.01174263,1964.0,1963.6,0.001]
[1771205708286,0.48036438,1964.2,1963.6,0.001]
[1771205708583,3.01316513,1964.1,1963.6,0.001]
[1771205708781,3.01316513,1964.0,1963.6,0.001]
[1771205708984,0.48036438,1964.2,1963.6,0.001]
[1771205709159,3.01316633,1964.1,1963.6,0.001]
[1771205709487,3.01316633,1964.0,1963.6,0.001]
[1771205709688,0.48036438,1964.2,1963.6,0.001]
[1771205709884,3.01529972,1964.1,1963.6,0.001]
[1771205710071,3.01529972,1964.0,1963.6,0.001]
[1771205710267,3.01529972,1963.9,1963.6,0.001]
[1771205710461,0.48036438,1964.2,1963.6,0.001]
[1771205710775,3.01768041,1964.1,1963.6,0.001]
[1771205710962,4.14634992,1964.4,1963.6,0.001]
[1771205710963,0.0011,1964.4,1963.6,0.001]
[1771205711597,0.0011,1964.4,1963.8,1.27304206]
[1771205711899,0.0011,1964.4,1963.9,1.692]